[Event "FIDE Grand Swiss 2023"]
[Site "Villa Marina, Douglas, Isle of Man"]
[Date "2023.11.04"]
[Round "10.53"]
[White "Sanal, Vahap"]
[Black "Wu, Li"]
[Result "1/2-1/2"]
[WhiteElo "2603"]
[BlackElo "2303"]
[EventDate "2023.10.25"]
[ECO "D02"]
[PlyCount "94"]
[BlackClock "00:49:29"]
[BlackFideId "411086"]
[TimeControl "40/100 + 20/50 + 15 + 30s/move"]
[WhiteClock "00:56:43"]
[WhiteFideId "6300545"]

1.d4 {[%clk 01:40:57][%emt 00:00:03]} 1...d5 {[%clk 01:40:43][%emt 00:00:17]} 
2.Nf3 {[%clk 01:41:18][%emt 00:00:08]} 2...c5 {[%clk 01:40:42][%emt 00:00:32]} 
3.e3 {[%clk 01:39:37][%emt 00:02:10]} 3...cxd4 {[%clk 01:36:33][%emt 00:04:39]} 
4.exd4 {[%clk 01:40:01][%emt 00:00:06]} 4...Nc6 {[%clk 01:36:43][%emt 00:00:22]} 
5.c3 {[%clk 01:38:32][%emt 00:01:58]} 5...Qc7 {[%clk 01:32:42][%emt 00:04:31]} 
6.h3 {[%clk 01:36:39][%emt 00:02:21]} 6...Bf5 {[%clk 01:30:02][%emt 00:03:12]} 
7.Bb5 {[%clk 01:24:46][%emt 00:12:22]} 7...e6 {[%clk 01:29:25][%emt 00:01:08]} 
8.g4 {[%clk 01:17:15][%emt 00:08:01]} 8...Bg6 {[%clk 01:27:10][%emt 00:02:45]} 
9.Ne5 {[%clk 01:17:11][%emt 00:00:33]} 9...Bd6 {[%clk 01:24:44][%emt 00:02:57]} 
10.Nxg6 {[%clk 01:14:59][%emt 00:02:41]} 10...hxg6 {[%clk 01:25:10][%emt
00:00:04]} 11.Be3 {[%clk 01:15:09][%emt 00:00:18]} 11...Nf6 {[%clk
01:19:42][%emt 00:06:01]} 12.Nd2 {[%clk 01:15:04][%emt 00:00:33]} 12...a6 
{[%clk 01:10:42][%emt 00:09:32]} 13.Bd3 {[%clk 01:13:58][%emt 00:01:35]} 
13...O-O-O {[%clk 01:06:01][%emt 00:05:12]} 14.Qe2 {[%clk 01:10:08][%emt
00:04:18]} 14...e5 {[%clk 01:04:28][%emt 00:02:05]} 15.dxe5 {[%clk
01:09:48][%emt 00:00:49]} 15...Bxe5 {[%clk 01:04:14][%emt 00:00:44]} 16.Nb3 
{[%clk 01:03:07][%emt 00:07:11]} 16...Rhe8 {[%clk 01:02:34][%emt 00:02:11]} 
17.g5 {[%clk 00:53:03][%emt 00:10:33]} 17...Nh5 {[%clk 00:58:47][%emt 00:04:17]} 
18.O-O-O {[%clk 00:53:19][%emt 00:00:14]} 18...d4 {[%clk 00:56:56][%emt
00:02:22]} 19.Qg4+ {[%clk 00:53:43][%emt 00:00:05]} 19...Kb8 {[%clk
00:57:21][%emt 00:00:06]} 20.cxd4 {[%clk 00:54:08][%emt 00:00:04]} 20...Bxd4 
{[%clk 00:56:36][%emt 00:01:15]} 21.Kb1 {[%clk 00:44:57][%emt 00:09:42]} 
21...Bxe3 {[%clk 00:56:44][%emt 00:00:22]} 22.fxe3 {[%clk 00:45:24][%emt
00:00:02]} 22...Ne5 {[%clk 00:57:00][%emt 00:00:14]} 23.Qa4 {[%clk
00:45:51][%emt 00:00:03]} 23...Nxd3 {[%clk 00:39:48][%emt 00:17:43]} 24.Rxd3 
{[%clk 00:44:32][%emt 00:01:48]} 24...Qe5 {[%clk 00:40:16][%emt 00:00:03]} 
25.Rhd1 {[%clk 00:43:20]} 25...Rxd3 {[%clk 00:30:02][%emt 00:10:45]} 26.Rxd3 
{[%clk 00:43:37][%emt 00:00:13]} 26...Rc8 {[%clk 00:28:52][%emt 00:01:41]} 
27.h4 {[%clk 00:40:17][%emt 00:03:49]} 27...Ng3 {[%clk 00:20:40][%emt 00:08:42]} 
28.Qg4 {[%clk 00:32:40][%emt 00:08:06]} 28...Nf5 {[%clk 00:19:12][%emt
00:02:00]} 29.e4 {[%clk 00:31:25][%emt 00:01:44]} 29...Nd6 {[%clk 00:19:36][%emt
00:00:06]} 30.Nd2 {[%clk 00:29:31][%emt 00:02:23]} 30...Rc5 {[%clk
00:14:57][%emt 00:05:10]} 31.a3 {[%clk 00:23:59][%emt 00:06:00]} 31...a5 {[%clk
00:12:12][%emt 00:03:16]} 32.a4 {[%clk 00:08:04][%emt 00:16:26]} 32...Nc4 
{[%clk 00:04:55][%emt 00:07:46]} 33.Nxc4 {[%clk 00:08:28][%emt 00:00:07]} 
33...Rxc4 {[%clk 00:05:23][%emt 00:00:02]} 34.Rd8+ {[%clk 00:05:59][%emt
00:02:58]} 34...Ka7 {[%clk 00:05:50][%emt 00:00:03]} 35.Qg1+ {[%clk
00:05:51][%emt 00:00:38]} 35...b6 {[%clk 00:06:08][%emt 00:00:12]} 36.Rd7+ 
{[%clk 00:05:32][%emt 00:00:49]} 36...Ka8 {[%clk 00:03:43][%emt 00:02:55]} 
37.Qg4 {[%clk 00:04:31][%emt 00:01:30]} 37...Qxe4+ {[%clk 00:01:25][%emt
00:02:49]} 38.Qxe4+ {[%clk 00:04:56][%emt 00:00:06]} 38...Rxe4 {[%clk
00:01:52][%emt 00:00:03]} 39.Rxf7 {[%clk 00:05:22][%emt 00:00:03]} 39...Rxa4 
{[%clk 00:02:11][%emt 00:00:12]} 40.Rxg7 {[%clk 00:05:25][%emt 00:00:26]} 
40...Rxh4 {[%clk 00:02:32][%emt 00:00:09]} 41.Rxg6 {[%clk 00:05:52][%emt
00:00:03]} 41...Kb7 {[%clk 00:02:58][%emt 00:00:05]} 42.Rf6 {[%clk
00:06:11][%emt 00:00:11]} 42...Rg4 {[%clk 00:02:53][%emt 00:00:35]} 43.g6 
{[%clk 00:06:35][%emt 00:00:05]} 43...Rg2 {[%clk 00:48:29][%emt 00:04:54]} 
44.Rf7+ {[%clk 00:56:48][%emt 00:00:18]} 44...Kc6 {[%clk 00:48:34][%emt
00:00:25]} 45.g7 {[%clk 00:57:12][%emt 00:00:05]} 45...b5 {[%clk 00:48:57][%emt
00:00:08]} 46.Kc1 {[%clk 00:57:05][%emt 00:00:37]} 46...a4 {[%clk 00:49:13][%emt
00:00:15]} 47.Kd1 {[%clk 00:57:24][%emt 00:00:08]} 47...b4 {[%clk 00:49:29][%emt
00:00:15]} 1/2-1/2

[Event "FIDE Grand Swiss 2023"]
[Site "Villa Marina, Douglas, Isle of Man"]
[Date "2023.11.04"]
[Round "10.54"]
[White "Gurel, Ediz"]
[Black "Fawzy, Adham"]
[Result "1-0"]
[WhiteElo "2514"]
[BlackElo "2535"]
[EventDate "2023.10.25"]
[ECO "B31"]
[PlyCount "99"]
[BlackClock "00:44:37"]
[BlackFideId "10613129"]
[TimeControl "40/100 + 20/50 + 15 + 30s/move"]
[WhiteClock "00:50:24"]
[WhiteFideId "44507356"]

1.e4 {[%clk 01:40:56][%emt 00:00:03]} 1...c5 {[%clk 01:40:43][%emt 00:00:17]} 
2.Nf3 {[%clk 01:41:16][%emt 00:00:09]} 2...Nc6 {[%clk 01:41:10][%emt 00:00:04]} 
3.Bb5 {[%clk 01:41:29][%emt 00:00:17]} 3...g6 {[%clk 01:41:31][%emt 00:00:09]} 
4.Bxc6 {[%clk 01:41:48][%emt 00:00:12]} 4...bxc6 {[%clk 01:41:25][%emt
00:00:36]} 5.d4 {[%clk 01:42:05][%emt 00:00:13]} 5...Bg7 {[%clk 01:41:26][%emt
00:00:28]} 6.dxc5 {[%clk 01:42:18][%emt 00:00:18]} 6...Qa5+ {[%clk
01:41:47][%emt 00:00:09]} 7.Nbd2 {[%clk 01:42:31][%emt 00:00:16]} 7...Qxc5 
{[%clk 01:42:00][%emt 00:00:17]} 8.O-O {[%clk 01:42:51][%emt 00:00:10]} 8...d6 
{[%clk 01:42:13][%emt 00:00:17]} 9.Re1 {[%clk 01:43:04][%emt 00:00:17]} 9...a5 
{[%clk 01:42:12][%emt 00:00:31]} 10.Nb3 {[%clk 01:43:06][%emt 00:00:28]} 
10...Qb6 {[%clk 01:42:38][%emt 00:00:03]} 11.e5 {[%clk 01:43:13][%emt 00:00:24]} 
11...a4 {[%clk 01:38:25][%emt 00:04:43]} 12.Nbd2 {[%clk 01:43:22][%emt
00:00:21]} 12...d5 {[%clk 01:37:01][%emt 00:01:54]} 13.b4 {[%clk 01:43:21][%emt
00:00:32]} 13...Nh6 {[%clk 01:31:27][%emt 00:06:03]} 14.Rb1 {[%clk
01:40:28][%emt 00:03:23]} 14...O-O {[%clk 01:24:15][%emt 00:07:42]} 15.Nf1 
{[%clk 01:31:14][%emt 00:09:44]} 15...Ng4 {[%clk 01:18:28][%emt 00:06:17]} 
16.Qd2 {[%clk 01:28:44][%emt 00:03:00]} 16...f6 {[%clk 00:58:42][%emt 00:20:16]} 
17.exf6 {[%clk 01:26:52][%emt 00:02:23]} 17...Bxf6 {[%clk 00:48:20][%emt
00:10:52]} 18.h3 {[%clk 01:16:34][%emt 00:10:47]} 18...e5 {[%clk 00:44:43][%emt
00:04:08]} 19.hxg4 {[%clk 01:13:57][%emt 00:03:06]} 19...e4 {[%clk
00:44:47][%emt 00:00:25]} 20.N3h2 {[%clk 00:57:25][%emt 00:17:03]} 20...a3 
{[%clk 00:39:49][%emt 00:05:28]} 21.Rb3 {[%clk 00:53:26][%emt 00:04:29]} 
21...Ba6 {[%clk 00:34:43][%emt 00:05:36]} 22.Bxa3 {[%clk 00:42:30][%emt
00:11:26]} 22...Bh4 {[%clk 00:25:31][%emt 00:09:42]} 23.g3 {[%clk 00:41:04][%emt
00:01:57]} 23...Bg5 {[%clk 00:25:48][%emt 00:00:12]} 24.Ne3 {[%clk
00:41:27][%emt 00:00:08]} 24...d4 {[%clk 00:22:01][%emt 00:04:17]} 25.b5 {[%clk
00:40:31][%emt 00:01:26]} 25...dxe3 {[%clk 00:19:31][%emt 00:02:59]} 26.fxe3 
{[%clk 00:27:37][%emt 00:13:24]} 26...Bxb5 {[%clk 00:18:14][%emt 00:01:47]} 
27.Bxf8 {[%clk 00:28:03][%emt 00:00:05]} 27...Rxf8 {[%clk 00:18:35][%emt
00:00:09]} 28.Kg2 {[%clk 00:22:12][%emt 00:06:21]} 28...Qc5 {[%clk
00:16:35][%emt 00:02:29]} 29.Kh3 {[%clk 00:18:34][%emt 00:04:08]} 29...Bf6 
{[%clk 00:14:31][%emt 00:02:34]} 30.Rd1 {[%clk 00:17:11][%emt 00:01:53]} 
30...h5 {[%clk 00:08:44][%emt 00:06:17]} 31.Qd7 {[%clk 00:12:12][%emt 00:05:29]} 
31...Rf7 {[%clk 00:03:50][%emt 00:05:24]} 32.Qe8+ {[%clk 00:11:21][%emt
00:01:21]} 32...Kg7 {[%clk 00:04:03][%emt 00:00:17]} 33.Qxe4 {[%clk
00:08:12][%emt 00:03:40]} 33...Be2 {[%clk 00:04:17][%emt 00:00:15]} 34.Rd2 
{[%clk 00:07:23][%emt 00:01:19]} 34...hxg4+ {[%clk 00:03:51][%emt 00:00:56]} 
35.Kg2 {[%clk 00:07:52]} 35...Re7 {[%clk 00:02:12][%emt 00:02:10]} 36.Qf4 
{[%clk 00:06:02][%emt 00:02:19]} 36...g5 {[%clk 00:00:31][%emt 00:02:11]} 
37.Qb4 {[%clk 00:04:56][%emt 00:01:36]} 37...Bf3+ {[%clk 00:00:50][%emt
00:00:11]} 38.Nxf3 {[%clk 00:04:39][%emt 00:00:47]} 38...gxf3+ {[%clk
00:01:19][%emt 00:00:01]} 39.Kxf3 {[%clk 00:04:39][%emt 00:00:30]} 39...Qf5+ 
{[%clk 00:00:46][%emt 00:01:03]} 40.Kg2 {[%clk 00:04:34][%emt 00:00:35]} 
40...Kg6 {[%clk 00:00:31][%emt 00:00:45]} 41.Qc4 {[%clk 00:02:22][%emt
00:02:42]} 41...g4 {[%clk 00:45:06][%emt 00:05:56]} 42.Qd3 {[%clk 00:52:23][%emt
00:00:28]} 42...Qe4+ {[%clk 00:44:33][%emt 00:01:03]} 43.Qxe4+ {[%clk
00:50:25][%emt 00:02:29]} 43...Rxe4 {[%clk 00:45:01][%emt 00:00:02]} 44.Rd6 
{[%clk 00:48:35][%emt 00:02:20]} 44...Rc4 {[%clk 00:44:25][%emt 00:01:05]} 
45.Rb6 {[%clk 00:48:47][%emt 00:00:18]} 45...Rxc2+ {[%clk 00:43:46][%emt
00:01:08]} 46.Kf1 {[%clk 00:49:15][%emt 00:00:03]} 46...Rc1+ {[%clk
00:44:04][%emt 00:00:12]} 47.Ke2 {[%clk 00:49:40][%emt 00:00:04]} 47...Rc2+ 
{[%clk 00:44:31][%emt 00:00:04]} 48.Kd3 {[%clk 00:50:00][%emt 00:00:11]} 
48...Rxa2 {[%clk 00:44:24][%emt 00:00:36]} 49.Rbxc6 {[%clk 00:49:59] [%emt
00:00:32]} 49...Rf2 {[%clk 00:44:43] [%emt 00:00:11]} 50.Ke4 {[%clk 00:50:24]
[%emt 00:00:05]} 1-0

[Event "FIDE Grand Swiss 2023"]
[Site "Villa Marina, Douglas, Isle of Man"]
[Date "2023.11.04"]
[Round "10.55"]
[White "Greenfeld, Alon"]
[Black "Amar, Elham"]
[Result "1-0"]
[WhiteElo "2455"]
[BlackElo "2568"]
[EventDate "2023.10.25"]
[ECO "D47"]
[PlyCount "81"]
[BlackClock "00:31:15"]
[BlackFideId "1533533"]
[TimeControl "40/100 + 20/50 + 15 + 30s/move"]
[WhiteClock "00:04:38"]
[WhiteFideId "2800039"]

1.Nf3 {[%clk 01:36:44][%emt 00:04:14]} 1...Nf6 {[%clk 01:40:52][%emt 00:00:09]} 
2.c4 {[%clk 01:37:01][%emt 00:00:13]} 2...e6 {[%clk 01:41:15][%emt 00:00:07]} 
3.Nc3 {[%clk 01:35:29][%emt 00:02:02]} 3...d5 {[%clk 01:41:40][%emt 00:00:06]} 
4.d4 {[%clk 01:31:54][%emt 00:04:05]} 4...c6 {[%clk 01:42:01][%emt 00:00:10]} 
5.e3 {[%clk 01:30:50][%emt 00:01:34]} 5...Nbd7 {[%clk 01:42:07][%emt 00:00:23]} 
6.Bd3 {[%emt 00:02:16]} 6...dxc4 {[%clk 01:42:26]} 7.Bxc4 {[%clk 01:29:39][%emt
00:00:06]} 7...b5 {[%clk 01:42:50][%emt 00:00:07]} 8.Bd3 {[%clk 01:29:26][%emt
00:00:42]} 8...Bd6 {[%clk 01:43:03][%emt 00:00:17]} 9.O-O {[%clk 01:28:45][%emt
00:01:11]} 9...O-O {[%clk 01:43:23][%emt 00:00:10]} 10.b3 {[%clk 01:28:42][%emt
00:00:34]} 10...Bb7 {[%clk 01:40:39][%emt 00:03:14]} 11.Bb2 {[%clk
01:27:48][%emt 00:01:23]} 11...Qe7 {[%clk 01:32:45][%emt 00:08:25]} 12.e4 
{[%clk 01:26:28][%emt 00:01:49]} 12...e5 {[%clk 01:32:13][%emt 00:01:03]} 
13.Ne2 {[%clk 01:26:51][%emt 00:00:07]} 13...Rfe8 {[%clk 01:27:39][%emt
00:05:04]} 14.Ng3 {[%clk 01:26:22][%emt 00:00:58]} 14...g6 {[%clk 01:28:02][%emt
00:00:07]} 15.Qd2 {[%clk 01:16:20][%emt 00:10:32]} 15...Ba3 {[%clk
01:01:39][%emt 00:26:54]} 16.Bxa3 {[%clk 00:56:07][%emt 00:20:43]} 16...Qxa3 
{[%clk 01:02:04][%emt 00:00:05]} 17.Nxe5 {[%clk 00:45:30][%emt 00:11:06]} 
17...Nxe5 {[%clk 01:02:25][%emt 00:00:10]} 18.dxe5 {[%clk 00:45:55][%emt
00:00:04]} 18...Ng4 {[%clk 01:00:37][%emt 00:02:19]} 19.f4 {[%clk 00:40:28][%emt
00:05:57]} 19...Qc5+ {[%clk 00:59:37][%emt 00:01:30]} 20.Kh1 {[%clk
00:40:51][%emt 00:00:07]} 20...Rad8 {[%clk 01:00:00][%emt 00:00:07]} 21.Rf3 
{[%clk 00:37:46][%emt 00:03:34]} 21...Bc8 {[%clk 00:55:39][%emt 00:04:52]} 
22.Raf1 {[%clk 00:32:05][%emt 00:06:10]} 22...Qe7 {[%clk 00:37:19][%emt
00:18:51]} 23.h3 {[%clk 00:31:27][%emt 00:01:08]} 23...Nh6 {[%clk 00:37:44][%emt
00:00:06]} 24.Kg1 {[%clk 00:26:50][%emt 00:05:05]} 24...Qh4 {[%clk
00:34:02][%emt 00:04:12]} 25.Qf2 {[%clk 00:21:29][%emt 00:05:51]} 25...Bg4 
{[%clk 00:32:01][%emt 00:02:31]} 26.Re3 {[%clk 00:21:51][%emt 00:00:08]} 
26...Be6 {[%clk 00:32:28][%emt 00:00:03]} 27.Ne2 {[%clk 00:19:56][%emt
00:02:26]} 27...Qxf2+ {[%clk 00:32:29][%emt 00:00:29]} 28.Kxf2 {[%clk
00:19:41][%emt 00:00:45]} 28...Re7 {[%clk 00:32:43][%emt 00:00:16]} 29.Rc1 
{[%clk 00:17:55][%emt 00:02:16]} 29...Red7 {[%clk 00:32:30][%emt 00:00:43]} 
30.Bb1 {[%clk 00:18:04][%emt 00:00:20]} 30...Rd2 {[%clk 00:31:53][%emt
00:01:07]} 31.Rec3 {[%clk 00:16:53][%emt 00:01:41]} 31...a5 {[%clk
00:31:26][%emt 00:00:59]} 32.Rxc6 {[%clk 00:12:46][%emt 00:04:36]} 32...a4 
{[%clk 00:31:52][%emt 00:00:04]} 33.R6c2 {[%clk 00:08:30][%emt 00:04:45]} 
33...axb3 {[%clk 00:31:59][%emt 00:00:24]} 34.Rxd2 {[%clk 00:08:04][%emt
00:00:57]} 34...Rxd2 {[%clk 00:32:26][%emt 00:00:01]} 35.axb3 {[%clk
00:08:29][%emt 00:00:06]} 35...Bxb3 {[%clk 00:32:54][%emt 00:00:02]} 36.Ke3 
{[%clk 00:07:21][%emt 00:01:37]} 36...Rb2 {[%clk 00:32:52][%emt 00:00:32]} 
37.Bd3 {[%clk 00:07:26][%emt 00:00:25]} 37...Be6 {[%clk 00:32:06][%emt
00:01:17]} 38.g4 {[%clk 00:07:01][%emt 00:00:54]} 38...Kf8 {[%clk 00:32:26][%emt
00:00:11]} 39.Rc7 {[%clk 00:05:45][%emt 00:01:45]} 39...Ke8 {[%clk
00:31:35][%emt 00:01:22]} 40.Rb7 {[%clk 00:06:01][%emt 00:00:14]} 40...b4 
{[%clk 00:31:28][%emt 00:00:37]} 41.g5 {[%clk 00:04:38][%emt 00:01:53]} 1-0

[Event "FIDE Grand Swiss 2023"]
[Site "Villa Marina, Douglas, Isle of Man"]
[Date "2023.11.04"]
[Round "10.56"]
[White "Henriquez Villagra, Cristobal"]
[Black "Kolbus, Dietmar"]
[Result "1-0"]
[WhiteElo "2630"]
[BlackElo "2225"]
[EventDate "2023.10.25"]
[ECO "A45"]
[PlyCount "107"]
[BlackClock "00:39:08"]
[BlackFideId "4610628"]
[TimeControl "40/100 + 20/50 + 15 + 30s/move"]
[WhiteClock "01:35:33"]
[WhiteFideId "3409350"]

1.d4 {[%clk 01:40:58][%emt 00:00:01]} 1...Nf6 {[%clk 01:39:51][%emt 00:01:08]} 
2.Bf4 {[%clk 01:41:22][%emt 00:00:06]} 2...d5 {[%clk 01:33:38][%emt 00:06:44]} 
3.e3 {[%clk 01:41:41][%emt 00:00:10]} 3...c6 {[%clk 01:31:22][%emt 00:02:47]} 
4.c4 {[%clk 01:41:29][%emt 00:00:42]} 4...g6 {[%clk 01:30:12][%emt 00:01:40]} 
5.Nc3 {[%clk 01:40:46][%emt 00:01:12]} 5...Bg7 {[%clk 01:30:28][%emt 00:00:15]} 
6.h3 {[%clk 01:40:29][%emt 00:00:47]} 6...O-O {[%clk 01:30:47][%emt 00:00:11]} 
7.Nf3 {[%clk 01:40:55][%emt 00:00:03]} 7...Ne4 {[%clk 01:30:31][%emt 00:00:47]} 
8.Qb3 {[%clk 01:34:40][%emt 00:06:45]} 8...Nxc3 {[%clk 01:28:38][%emt 00:02:24]} 
9.bxc3 {[%clk 01:34:44][%emt 00:00:25]} 9...Qa5 {[%clk 01:27:19][%emt 00:01:48]} 
10.a3 {[%clk 01:26:56][%emt 00:08:19]} 10...Be6 {[%clk 01:02:32][%emt 00:25:17]} 
11.c5 {[%clk 01:17:06][%emt 00:10:20]} 11...Bc8 {[%clk 00:59:03][%emt 00:03:58]} 
12.Be2 {[%clk 01:16:27][%emt 00:01:10]} 12...Nd7 {[%clk 00:59:27][%emt
00:00:07]} 13.O-O {[%clk 01:15:57][%emt 00:00:58]} 13...e5 {[%clk 00:58:24][%emt
00:01:34]} 14.Bg3 {[%clk 01:11:40][%emt 00:04:47]} 14...Re8 {[%clk
00:58:36][%emt 00:00:19]} 15.Rfd1 {[%clk 01:06:54][%emt 00:05:15]} 15...exd4 
{[%clk 00:49:17][%emt 00:09:49]} 16.cxd4 {[%clk 01:07:10][%emt 00:00:14]} 
16...Qd8 {[%clk 00:43:45][%emt 00:06:02]} 17.a4 {[%clk 00:59:53][%emt 00:07:47]} 
17...Qa5 {[%clk 00:31:57][%emt 00:12:18]} 18.Rdc1 {[%clk 00:59:09][%emt
00:01:13]} 18...Nf6 {[%clk 00:30:01][%emt 00:02:27]} 19.Bd3 {[%clk
00:59:12][%emt 00:00:27]} 19...Nh5 {[%clk 00:28:01][%emt 00:02:30]} 20.Bh2 
{[%clk 00:58:16][%emt 00:01:25]} 20...f5 {[%clk 00:27:54][%emt 00:00:39]} 
21.Rab1 {[%clk 00:56:10][%emt 00:02:35]} 21...Bf6 {[%clk 00:25:10][%emt
00:03:13]} 22.Ne5 {[%clk 00:51:36][%emt 00:05:05]} 22...Ng7 {[%clk
00:19:26][%emt 00:06:15]} 23.Qc2 {[%clk 00:51:21][%emt 00:00:45]} 23...Re7 
{[%clk 00:18:46][%emt 00:01:08]} 24.Rb2 {[%clk 00:51:06][%emt 00:00:46]} 
24...Qd8 {[%clk 00:16:06][%emt 00:03:10]} 25.Kh1 {[%clk 00:51:08][%emt
00:00:28]} 25...Qe8 {[%clk 00:16:01][%emt 00:00:35]} 26.Nf3 {[%clk
00:50:26][%emt 00:01:12]} 26...Qd8 {[%clk 00:13:18][%emt 00:03:13]} 27.Bd6 
{[%clk 00:50:20][%emt 00:00:36]} 27...Re6 {[%clk 00:13:03][%emt 00:00:45]} 
28.Qb1 {[%clk 00:49:54][%emt 00:00:56]} 28...Ne8 {[%clk 00:10:59][%emt
00:02:34]} 29.Bh2 {[%clk 00:50:13][%emt 00:00:10]} 29...Re7 {[%clk
00:10:57][%emt 00:00:32]} 30.Ne5 {[%clk 00:50:38][%emt 00:00:06]} 30...a6 
{[%clk 00:09:30][%emt 00:01:58]} 31.f3 {[%clk 00:50:57][%emt 00:00:10]} 
31...Ra7 {[%clk 00:08:59][%emt 00:01:01]} 32.g4 {[%clk 00:51:05][%emt 00:00:21]} 
32...Ng7 {[%clk 00:09:05][%emt 00:00:25]} 33.Rg2 {[%clk 00:51:10][%emt
00:00:26]} 33...fxg4 {[%clk 00:04:24][%emt 00:05:10]} 34.fxg4 {[%clk
00:51:14][%emt 00:00:26]} 34...Ne6 {[%clk 00:03:11][%emt 00:01:43]} 35.Rf1 
{[%clk 00:50:51][%emt 00:00:52]} 35...Bg7 {[%clk 00:03:31][%emt 00:00:10]} 
36.Rgf2 {[%clk 00:50:49][%emt 00:00:33]} 36...Nxc5 {[%clk 00:01:58][%emt
00:02:04]} 37.dxc5 {[%clk 00:45:12][%emt 00:06:06]} 37...Bxe5 {[%clk
00:02:08][%emt 00:00:20]} 38.Bxe5 {[%clk 00:43:12][%emt 00:02:30]} 38...Rxe5 
{[%clk 00:02:31][%emt 00:00:07]} 39.Rf8+ {[%clk 00:43:36][%emt 00:00:05]} 
39...Qxf8 {[%clk 00:02:48][%emt 00:00:14]} 40.Rxf8+ {[%clk 00:44:03][%emt
00:00:03]} 40...Kxf8 {[%clk 00:03:07][%emt 00:00:11]} 41.Qf1+ {[%clk
00:44:26][%emt 00:00:07]} 41...Ke8 {[%clk 00:44:34][%emt 00:09:04]} 42.Qf4 
{[%clk 01:34:26][%emt 00:00:30]} 42...Re7 {[%clk 00:44:42][%emt 00:00:22]} 
43.Qb8 {[%clk 01:34:50][%emt 00:00:05]} 43...Kd7 {[%clk 00:45:00][%emt
00:00:13]} 44.Qxa7 {[%clk 01:34:54][%emt 00:00:25]} 44...Rxe3 {[%clk
00:45:23][%emt 00:00:07]} 45.Bf1 {[%clk 01:35:02][%emt 00:00:22]} 45...Rc3 
{[%clk 00:44:34][%emt 00:01:18]} 46.Qb6 {[%clk 01:35:09][%emt 00:00:24]} 
46...Re3 {[%clk 00:43:42][%emt 00:01:22]} 47.Kg2 {[%clk 01:35:16][%emt
00:00:23]} 47...Re7 {[%clk 00:44:04][%emt 00:00:08]} 48.Qb2 {[%clk
01:35:11][%emt 00:00:35]} 48...Kc7 {[%clk 00:39:56][%emt 00:04:38]} 49.Qf6 
{[%clk 01:35:27][%emt 00:00:14]} 49...Kd8 {[%clk 00:39:48][%emt 00:00:37]} 
50.Bd3 {[%clk 01:34:46][%emt 00:01:13]} 50...Be6 {[%clk 00:40:01][%emt
00:00:17]} 51.a5 {[%clk 01:34:52][%emt 00:00:25]} 51...Bf7 {[%clk 00:39:12][%emt
00:01:18]} 52.Qd6+ {[%clk 01:34:45][%emt 00:00:38]} 52...Rd7 {[%clk 00:39:06]
[%emt 00:00:35]} 53.Qb8+ {[%clk 01:35:09] [%emt 00:00:05]} 53...Ke7 {[%clk
00:39:25] [%emt 00:00:11]} 54.Qh8 {[%clk 01:35:33] [%emt 00:00:06]} 1-0